bitfinex-derivatives/quotes_BTCF0:USTF0_20251109
["timestamp","ask_amount","ask_price","bid_price","bid_amount"]
[1762695953078,0.5095576,102780.0,102770.0,0.14495651]
[1762695953277,0.5095576,102780.0,102770.0,0.06891877]
[1762695953478,0.5095576,102780.0,102770.0,0.16624587]
[1762695953782,0.5095576,102780.0,102770.0,0.06991877]
[1762695957478,0.5220076,102780.0,102770.0,0.05389877]
[1762695957882,0.5220076,102780.0,102770.0,0.13218619]
[1762695958082,0.5220076,102780.0,102770.0,0.00207877]
[1762695959085,0.5220076,102780.0,102770.0,0.02877877]
[1762695959580,0.5220076,102780.0,102760.0,0.01029212]
[1762695959786,0.5109371,102770.0,102760.0,0.00014633]
[1762695959991,0.5109371,102770.0,102760.0,0.05261633]
[1762695960787,0.51104713,102770.0,102760.0,0.00214633]
[1762695961689,0.51104713,102770.0,102760.0,0.02884633]
[1762695961875,0.51104713,102770.0,102760.0,0.03084633]
[1762695962292,0.51104713,102770.0,102760.0,0.00414633]
[1762695962596,0.1428666,102760.0,102750.0,0.07746179]
[1762695962891,0.153326,102750.0,102740.0,0.0679]
[1762695963081,0.151326,102750.0,102740.0,0.0679]
[1762695963281,0.140876,102750.0,102740.0,0.0679]
[1762695964479,0.1428855,102740.0,102730.0,0.43895659]
[1762695964787,0.5036855,102740.0,102730.0,0.14583469]
[1762695966181,0.51620589,102740.0,102730.0,0.07793469]
[1762695966382,0.51620589,102740.0,102730.0,0.00114633]
[1762695967190,0.51620589,102740.0,102730.0,0.00214633]
[1762695967580,0.51620589,102740.0,102720.0,0.54512213]
[1762695967581,0.138595,102730.0,102720.0,0.54512213]
[1762695967787,0.499395,102730.0,102720.0,0.54512213]
[1762695968085,0.499395,102730.0,102720.0,2.13e-06]
[1762695968992,0.502395,102730.0,102720.0,2.13e-06]
[1762695970693,0.505395,102730.0,102720.0,2.13e-06]
[1762695971390,0.505395,102730.0,102720.0,0.06790213]
[1762695971584,0.1445951,102730.0,102720.0,0.16527663]
[1762695971785,0.5053951,102730.0,102720.0,0.06790213]
[1762695972294,0.5053951,102730.0,102720.0,0.02670213]
[1762695972990,0.005,102730.0,102720.0,0.52607673]
[1762695973184,0.005,102730.0,102720.0,1.46678401]
[1762695973387,0.005,102730.0,102720.0,1.22342401]
[1762695973586,0.004,102730.0,102720.0,1.22342401]
[1762695973787,0.002,102730.0,102720.0,1.22342401]
[1762695973987,0.005,102730.0,102720.0,1.46678401]
[1762695974290,0.4581377,102760.0,102750.0,0.0679]
[1762695974685,0.4996477,102760.0,102750.0,0.0679]
[1762695974885,0.40231,102760.0,102750.0,0.0679]
[1762695975085,0.3608,102770.0,102760.0,0.0679]
[1762695975086,0.4996415,102770.0,102760.0,0.0679]
[1762695975294,0.13895706,102770.0,102760.0,0.0679]
[1762695975597,0.02073556,102770.0,102760.0,0.0679]
[1762695975793,0.13895266,102770.0,102760.0,0.50508769]
[1762695975992,0.13895266,102770.0,102760.0,0.4287]
[1762695976188,0.13895266,102770.0,102760.0,0.0679]
[1762695976388,0.13895266,102770.0,102760.0,0.4287]
[1762695976597,0.13895266,102770.0,102760.0,0.0679]
[1762695978196,0.04162556,102770.0,102760.0,0.0679]
[1762695978495,0.04262556,102770.0,102760.0,0.4287]
[1762695979102,0.04362556,102770.0,102760.0,0.4287]
[1762695979301,0.14095266,102770.0,102760.0,0.4287]
[1762695979498,0.14095266,102770.0,102760.0,0.50796832]
[1762695980402,0.14095266,102770.0,102760.0,0.14716832]
[1762695980597,0.50175266,102770.0,102760.0,0.14716832]
[1762695983301,0.14095266,102770.0,102760.0,0.14716832]
[1762695984502,0.50175266,102770.0,102760.0,0.14716832]
[1762695988612,0.40442556,102770.0,102760.0,0.14716832]
[1762695988909,0.40442556,102770.0,102760.0,0.24450492]
[1762695989113,0.00211556,102770.0,102760.0,0.60530492]
[1762695989811,0.00211556,102770.0,102760.0,0.70261431]
[1762695990611,0.00211556,102770.0,102760.0,0.77130556]
[1762695991105,0.00111556,102770.0,102760.0,1.01458556]
[1762695991312,0.00014633,102780.0,102770.0,0.1602271]
[1762695991497,0.00014633,102780.0,102770.0,0.5210271]
[1762695992005,0.00014633,102780.0,102770.0,0.61833649]
[1762695993003,0.4730554,102800.0,102790.0,0.04935]
[1762695993212,0.4880054,102800.0,102790.0,0.0629]
[1762695994304,0.0329,102800.0,102790.0,0.0629]
[1762695994506,0.1301987,102800.0,102790.0,0.0629]
[1762695994705,0.1301987,102800.0,102790.0,0.4237]
[1762695994706,0.1341987,102800.0,102790.0,0.4237]
[1762695995212,0.1341987,102800.0,102790.0,0.0629]
[1762695996003,0.1341987,102800.0,102790.0,0.4237]
[1762695996200,0.1341987,102800.0,102790.0,0.0629]
[1762696000511,0.3977,102800.0,102790.0,0.0629]
[1762696000814,0.1341987,102800.0,102790.0,0.0629]
[1762696001017,0.4949987,102800.0,102790.0,0.07303601]
[1762696002817,0.4949987,102800.0,102790.0,0.0629]
[1762696006617,0.1192882,102790.0,102780.0,0.05824633]
[1762696006829,0.4800882,102790.0,102780.0,0.05824633]
[1762696008612,0.4820882,102790.0,102780.0,0.05824633]
[1762696009111,0.4850882,102790.0,102780.0,0.05824633]
[1762696009514,0.38778,102790.0,102780.0,0.15556403]
[1762696009718,0.4850882,102790.0,102780.0,0.15556403]
[1762696009919,0.4850882,102790.0,102780.0,0.05824633]
[1762696010729,0.4820882,102790.0,102780.0,0.05824633]
[1762696010926,0.4840882,102790.0,102780.0,0.05824633]
[1762696011726,0.4830882,102790.0,102780.0,0.05824633]
[1762696014224,0.003,102790.0,102780.0,0.85689449]
[1762696014424,0.02812633,102810.0,102800.0,0.0574]
[1762696014726,0.01413633,102810.0,102800.0,0.5938023]
[1762696014921,0.01413633,102810.0,102800.0,0.5154988]
[1762696015117,0.00014633,102810.0,102800.0,0.97358926]
[1762696015425,2.476e-05,102810.0,102800.0,1.04252488]
[1762696015621,0.00202476,102810.0,102800.0,0.97358926]
[1762696015822,0.00202476,102810.0,102800.0,1.06090896]
[1762696016222,2.476e-05,102810.0,102800.0,1.03765896]
[1762696016622,2.476e-05,102810.0,102800.0,1.01635896]
[1762696016825,2.476e-05,102810.0,102800.0,0.99790449]
[1762696018127,2.476e-05,102810.0,102800.0,1.24106449]
[1762696018626,2.476e-05,102810.0,102800.0,1.31972604]
[1762696019122,2.476e-05,102810.0,102800.0,1.07656604]
[1762696019322,2.476e-05,102810.0,102800.0,1.31972604]
[1762696019725,2.476e-05,102810.0,102800.0,1.07656604]
[1762696020231,0.04388,102840.0,102800.0,1.22290182]
[1762696020422,0.0139,102850.0,102840.0,0.0972609]
[1762696020423,0.04388,102850.0,102840.0,0.0972609]
[1762696020618,0.05778,102860.0,102850.0,0.1418206]
[1762696020822,0.02245,102860.0,102850.0,0.1548806]
[1762696021125,0.05563839,102870.0,102860.0,0.1418119]
[1762696021329,0.00875839,102870.0,102860.0,1.0612219]
[1762696021522,0.00092474,102870.0,102860.0,1.37312713]
[1762696021720,0.00092474,102870.0,102860.0,1.13006947]
[1762696021920,0.00092474,102870.0,102860.0,1.06120424]
[1762696022120,0.4580095,102900.0,102860.0,1.15844614]
[1762696022328,0.05778,102900.0,102890.0,0.3608]
[1762696022520,0.05778,102890.0,102880.0,0.36094633]
[1762696022829,0.0139,102890.0,102880.0,0.45816933]
[1762696023035,0.05778,102900.0,102880.0,0.51048365]
[1762696023219,0.05778,102900.0,102890.0,0.3608]
[1762696023220,0.0139,102900.0,102890.0,0.3608]
[1762696023425,0.0139,102900.0,102890.0,0.44001469]
[1762696023631,0.03635,102900.0,102890.0,0.44001469]
[1762696023928,0.1549841,102900.0,102890.0,0.53721058]
[1762696024135,0.1549841,102900.0,102890.0,0.17641058]
[1762696024535,0.1589841,102900.0,102890.0,0.17641058]
[1762696024934,0.06178,102900.0,102890.0,0.17641058]
[1762696025134,0.06178,102900.0,102890.0,0.53721058]
[1762696025837,0.1589841,102900.0,102890.0,0.53721058]
[1762696027438,0.5197841,102900.0,102890.0,0.07921469]
[1762696027736,0.05778,102890.0,102880.0,0.36094633]
[1762696028034,0.05778,102890.0,102880.0,0.45813278]
[1762696030530,0.06078,102890.0,102880.0,0.55535578]
[1762696030834,0.06078,102890.0,102880.0,0.45813278]
[1762696031835,0.1579935,102890.0,102880.0,0.45813278]
[1762696032034,0.1579935,102890.0,102880.0,0.00014633]
[1762696032333,0.06078,102890.0,102880.0,0.45816933]
[1762696032540,0.0169,102890.0,102880.0,0.79836522]
[1762696032932,0.0169,102890.0,102880.0,0.55536522]
[1762696033435,0.0169,102890.0,102880.0,0.79836522]
[1762696034238,0.003,102890.0,102880.0,0.55536522]
[1762696034439,0.003,102890.0,102880.0,0.79836522]
[1762696034633,0.003,102890.0,102880.0,0.55536522]
[1762696035431,0.003,102890.0,102880.0,0.79836522]
[1762696035739,0.003,102890.0,102880.0,0.94666522]
[1762696036035,0.003,102890.0,102880.0,0.79836522]
[1762696036237,0.003,102890.0,102880.0,0.94666522]
[1762696036442,0.03635,102910.0,102900.0,0.0972041]
[1762696036738,0.0139,102910.0,102900.0,0.4580041]
[1762696036941,0.0139,102910.0,102900.0,0.7009641]
[1762696037138,0.0139,102910.0,102900.0,0.79815999]
[1762696037334,0.03635,102920.0,102900.0,1.30555939]
[1762696037540,0.03635,102920.0,102910.0,0.4579947]
[1762696037842,0.05778,102920.0,102910.0,0.3608]
[1762696038245,0.03635,102920.0,102910.0,0.5551717]
[1762696038439,0.0139,102920.0,102910.0,0.5551717]
[1762696038641,0.04035,102920.0,102910.0,0.5551717]
[1762696038938,0.1589653,102920.0,102910.0,0.457977]
[1762696039139,0.0971947,102910.0,102900.0,0.36094633]
[1762696039340,0.1549747,102910.0,102900.0,0.00014633]
[1762696039541,0.1549747,102910.0,102900.0,0.09731389]
[1762696040341,0.5157747,102910.0,102900.0,0.09731389]
[1762696040843,0.5157747,102910.0,102900.0,0.00014633]
[1762696043639,0.5157747,102910.0,102900.0,0.09732333]
[1762696044646,0.1549747,102910.0,102900.0,0.09732333]
[1762696044848,0.1549745,102910.0,102900.0,0.09732333]
[1762696045047,0.05778,102910.0,102900.0,0.09732333]
[1762696045350,0.0139,102910.0,102900.0,0.79828723]
[1762696045838,0.08266,102920.0,102910.0,0.1530645]
[1762696046648,0.08266,102920.0,102910.0,0.25023206]
[1762696046846,0.08366,102920.0,102910.0,0.25023206]
[1762696049148,0.08366,102920.0,102910.0,0.15303756]
[1762696049550,0.08366,102920.0,102910.0,0.61103206]
[1762696050742,0.09723,102920.0,102910.0,0.61103206]
[1762696052048,0.09723,102920.0,102910.0,0.51383756]
[1762696052950,0.194415,102920.0,102910.0,0.51383756]
[1762696053352,0.09723,102920.0,102910.0,0.51383756]
[1762696053552,0.194415,102920.0,102910.0,0.51383756]
[1762696054256,0.1651805,102920.0,102910.0,0.15303756]
[1762696054452,0.1876305,102920.0,102910.0,0.15303756]
[1762696055653,0.5484305,102920.0,102910.0,0.09716756]
[1762696055849,0.09623,102910.0,102900.0,0.06754633]
[1762696056355,0.09623,102910.0,102900.0,0.16471389]
[1762696056957,0.1934245,102910.0,102900.0,0.16471389]
[1762696057144,0.5542245,102910.0,102900.0,0.16471389]
[1762696057454,0.09623,102910.0,102900.0,0.52551389]
[1762696057758,0.09623,102910.0,102900.0,0.62271779]
[1762696057947,0.09623,102910.0,102900.0,0.16471389]
[1762696058154,0.09623,102910.0,102900.0,0.52551389]
[1762696058747,0.1934245,102910.0,102900.0,0.16471389]
[1762696059251,0.1934245,102910.0,102900.0,0.00014633]
[1762696059552,1.1542245,102910.0,102900.0,0.00014633]
[1762696061762,1.13088852,102910.0,102900.0,0.00014633]
[1762696064072,0.53088852,102910.0,102900.0,0.00014633]
[1762696064464,0.55333852,102910.0,102900.0,0.00014633]
[1762696067873,0.1112,102890.0,102880.0,0.08257]
[1762696068074,0.2084134,102890.0,102880.0,0.04151]
[1762696068370,0.2084228,102880.0,102870.0,0.60946243]
[1762696068568,0.2084323,102870.0,102860.0,0.0692363]
[1762696068765,0.5692323,102870.0,102860.0,0.00037107]
[1762696071476,0.2084418,102860.0,102850.0,0.54450633]
[1762696071768,0.5692418,102860.0,102850.0,0.54450633]
[1762696071969,0.5692418,102860.0,102850.0,0.00014633]
[1762696072765,0.56934948,102860.0,102850.0,0.00014633]
[1762696072974,0.56934948,102860.0,102850.0,0.00114633]
[1762696074072,0.56934948,102860.0,102850.0,0.08371633]
[1762696077674,0.56934948,102860.0,102850.0,0.00114633]
[1762696084882,0.2066912,102850.0,102840.0,0.07765849]
[1762696085181,0.5674912,102850.0,102840.0,0.08458]
[1762696086086,0.5674912,102850.0,102840.0,0.08658]
[1762696087386,0.5674912,102850.0,102840.0,0.16789543]
[1762696089080,0.2066912,102850.0,102840.0,0.26515613]
[1762696089276,0.04187,102850.0,102840.0,0.64236613]
[1762696089480,0.11004401,102860.0,102850.0,0.1818312]
[1762696089780,0.11004401,102860.0,102850.0,0.5426312]
[1762696090074,0.11004401,102860.0,102850.0,0.6649049]
[1762696090278,0.00025401,102860.0,102850.0,1.2649049]
[1762696090478,0.20693581,102860.0,102850.0,0.5676537]
[1762696090686,0.1392112,102850.0,102840.0,0.52869543]
[1762696090987,0.1392112,102850.0,102840.0,0.52669543]
[1762696090988,0.2066912,102850.0,102840.0,0.52669543]
[1762696091189,0.2056912,102850.0,102840.0,0.52669543]
[1762696091375,0.2056912,102850.0,102840.0,0.52469543]
[1762696091774,0.2056912,102850.0,102840.0,0.54973543]
[1762696091987,0.10944,102850.0,102840.0,0.54973543]
[1762696092183,0.08383,102850.0,102840.0,0.64896913]
[1762696092391,0.56762863,102860.0,102850.0,0.10962]
[1762696092886,0.08397633,102860.0,102850.0,0.5676712]
[1762696093080,0.08397633,102860.0,102850.0,0.5676537]
[1762696093387,0.08397633,102860.0,102850.0,0.6649049]
[1762696093388,0.00014633,102860.0,102850.0,0.6649049]
[1762696094585,0.00014633,102860.0,102850.0,0.97785013]
[1762696094780,0.00014633,102860.0,102850.0,0.73477013]
[1762696094984,0.00014633,102860.0,102850.0,0.9089849]
[1762696095191,0.00014633,102860.0,102850.0,0.9963046]
[1762696095586,0.00014633,102860.0,102850.0,0.7532246]
[1762696095992,0.00014633,102860.0,102850.0,0.9963046]
[1762696096790,0.19776223,102880.0,102870.0,0.08458]
[1762696096982,0.19776223,102880.0,102870.0,0.44538]
[1762696097288,0.2066628,102880.0,102870.0,0.47042]
[1762696097490,0.2066628,102880.0,102870.0,0.04108]
[1762696097685,0.2066628,102880.0,102870.0,0.10962]
[1762696098188,0.2086628,102880.0,102870.0,0.10962]
[1762696099588,0.2086628,102880.0,102870.0,0.08458]
[1762696101694,0.2046323,102870.0,102860.0,0.53937922]
[1762696101985,0.1810623,102870.0,102860.0,0.63658456]
[1762696102189,0.08383,102870.0,102860.0,0.73382626]
[1762696105192,0.08483,102870.0,102860.0,0.73382626]
[1762696108587,0.1820625,102870.0,102860.0,0.73382626]
[1762696108782,0.08483,102870.0,102860.0,0.73382626]
[1762696109191,0.1820625,102870.0,102860.0,0.73382626]
[1762696110688,0.08483,102870.0,102860.0,0.73382626]
[1762696110892,0.08483,102870.0,102860.0,0.66501337]
[1762696112187,0.001,102870.0,102860.0,0.66501337]
[1762696112592,0.04205,102870.0,102860.0,0.66501337]
[1762696113089,0.001,102870.0,102860.0,0.73382626]
[1762696113288,0.001,102870.0,102860.0,0.82641337]
[1762696113480,0.001,102870.0,102860.0,0.91373307]
[1762696113886,0.001,102870.0,102860.0,1.15677307]
[1762696114086,0.001,102870.0,102860.0,0.91373307]
[1762696114596,0.001,102870.0,102860.0,0.81649137]
[1762696114784,0.04205,102870.0,102860.0,0.91373327]
[1762696115488,0.001,102870.0,102860.0,0.91373327]
[1762696117295,0.001,102870.0,102860.0,0.82641357]
[1762696117796,0.001,102870.0,102860.0,0.97471357]
[1762696118195,0.001,102870.0,102860.0,1.09701878]
[1762696121001,0.001,102870.0,102860.0,0.93561878]
[1762696125296,0.001,102870.0,102860.0,1.02187405]
[1762696125492,0.001,102870.0,102860.0,0.89956884]
[1762696126705,0.07771,102870.0,102860.0,0.89956884]
[1762696127495,0.04205,102870.0,102860.0,0.89956884]
[1762696127803,0.07771,102870.0,102860.0,0.89956884]
[1762696128810,0.04205,102870.0,102860.0,0.89956884]
[1762696129506,0.07771,102870.0,102860.0,0.75126884]
[1762696130200,0.07771,102870.0,102860.0,0.56777167]
[1762696130607,0.07771,102870.0,102860.0,0.66501357]
[1762696130996,0.07771,102870.0,102860.0,0.56777167]
[1762696131307,0.5546442,102900.0,102890.0,0.07097]
[1762696131995,0.45744,102900.0,102890.0,0.07097]
[1762696132195,0.07103,102900.0,102890.0,0.1897136]
[1762696132397,0.07103,102900.0,102890.0,0.64772839]
[1762696132599,0.07103,102900.0,102890.0,0.7339816]
[1762696132799,0.07103,102900.0,102890.0,0.81302536]
[1762696133306,0.07303,102900.0,102890.0,0.81302536]
[1762696134807,0.07328,102900.0,102890.0,0.81302536]
[1762696135009,0.07328,102900.0,102890.0,0.79569239]
[1762696136297,0.03762,102900.0,102890.0,0.79569239]
[1762696136804,0.00225,102900.0,102890.0,0.79569239]
[1762696138311,0.00225,102900.0,102890.0,0.72677215]
[1762696138512,0.00225,102900.0,102890.0,0.81302536]
[1762696140408,0.07299,102900.0,102890.0,0.62955855]
[1762696140707,0.00225,102900.0,102890.0,0.72677215]
[1762696141107,0.00225,102900.0,102890.0,0.81302536]
[1762696141709,0.07299,102900.0,102890.0,0.71581176]
[1762696141917,0.07299,102900.0,102890.0,0.81302536]
[1762696142105,0.03881,102900.0,102890.0,0.81302536]
[1762696142814,0.00225,102900.0,102890.0,0.81302536]
[1762696143406,0.00225,102900.0,102890.0,0.88180961]
[1762696143615,0.00225,102900.0,102890.0,0.7955564]
[1762696144307,0.00025,102900.0,102890.0,0.7955564]
[1762696144512,0.551179,102930.0,102920.0,0.09299]
[1762696144908,0.454,102930.0,102920.0,0.09299]
[1762696145711,0.5511758,102930.0,102920.0,0.09299]
[1762696145913,0.1880853,102920.0,102910.0,0.07317633]
[1762696146117,0.5488853,102920.0,102910.0,0.00014633]
[1762696146312,0.5488853,102920.0,102910.0,0.07317633]
[1762696146919,0.5488853,102920.0,102910.0,0.00014633]
[1762696147421,0.5488853,102920.0,102910.0,0.03763633]
[1762696147711,0.5488853,102920.0,102910.0,0.00014633]
[1762696148116,1.1488853,102920.0,102910.0,0.00014633]
[1762696148619,0.1894742,102900.0,102890.0,0.07914663]
[1762696148918,0.5502742,102900.0,102890.0,0.07914663]
[1762696149117,0.9110742,102900.0,102890.0,0.00010287]
[1762696152311,0.9110742,102900.0,102880.0,0.00014633]
[1762696152516,0.5503337,102890.0,102880.0,0.00014633]
[1762696153423,0.55043657,102890.0,102880.0,0.00014633]
[1762696154022,0.55043657,102890.0,102880.0,0.03763633]
[1762696155523,0.55043657,102890.0,102880.0,0.00014633]
[1762696157023,0.55043657,102890.0,102880.0,0.03763633]
[1762696157219,0.55043657,102890.0,102880.0,0.07317633]
[1762696158421,0.55043657,102890.0,102880.0,0.09313633]
[1762696159122,0.16805647,102890.0,102880.0,0.09313633]
[1762696159626,0.52885647,102890.0,102880.0,0.09313633]
[1762696159929,0.55053647,102890.0,102880.0,0.09313633]
[1762696160121,0.18973647,102890.0,102880.0,0.09313633]
[1762696160422,0.55053647,102890.0,102880.0,0.09313633]
[1762696161027,0.55053647,102890.0,102880.0,0.00014633]
[1762696161723,0.03666287,102890.0,102880.0,0.19035933]
[1762696161930,0.07084287,102890.0,102880.0,0.19035933]
[1762696162331,0.07084287,102890.0,102880.0,0.55115933]
[1762696162621,0.07084287,102890.0,102880.0,0.61991008]
[1762696163221,0.07084287,102890.0,102880.0,0.71710597]
[1762696163422,0.07084287,102890.0,102880.0,0.61988297]
[1762696164029,0.07084287,102890.0,102880.0,0.71710597]
[1762696166039,0.07084287,102890.0,102880.0,0.61988297]
[1762696166227,0.16805647,102890.0,102880.0,0.61988297]
[1762696167531,0.07084287,102890.0,102880.0,0.71710597]
[1762696167737,0.07084287,102890.0,102880.0,0.61988297]
[1762696168236,0.07084287,102890.0,102880.0,0.71710597]
[1762696168539,0.03666287,102890.0,102880.0,0.71710597]
[1762696168830,0.00010287,102890.0,102880.0,0.71710597]
[1762696170729,0.00010287,102890.0,102880.0,0.64835522]
[1762696171933,0.00010287,102890.0,102880.0,0.73429365]
[1762696175945,0.00010287,102890.0,102880.0,0.73432106]
[1762696177245,0.06627633,102910.0,102900.0,0.1757242]
[1762696177440,0.06627633,102910.0,102900.0,0.60529308]
[1762696177836,0.06627633,102910.0,102900.0,0.70247008]
[1762696179144,0.06627633,102910.0,102900.0,0.9945012]
[1762696179145,0.00014633,102910.0,102900.0,0.9945012]
[1762696180149,0.00014633,102910.0,102900.0,1.08046694]
[1762696180340,0.00014633,102910.0,102900.0,0.9945012]
[1762696181043,0.00014633,102910.0,102900.0,1.32342694]
[1762696181544,0.00014633,102910.0,102900.0,0.9945012]
[1762696181951,0.00014633,102910.0,102900.0,1.2374612]
[1762696182249,0.00014633,102910.0,102900.0,1.7818612]
[1762696182948,0.00014633,102910.0,102900.0,1.5389012]
[1762696183445,0.00014633,102910.0,102900.0,1.7003012]
[1762696183652,0.00014633,102910.0,102900.0,1.5389012]
[1762696184553,0.00014633,102910.0,102900.0,1.7818612]
[1762696185249,0.5515487,102940.0,102930.0,0.03314]
[1762696186250,0.5515421,102940.0,102930.0,0.03314]
[1762696188240,0.5515421,102940.0,102930.0,0.04296753]
[1762696188844,0.4543757,102940.0,102930.0,0.04296753]
[1762696189249,0.5515421,102940.0,102930.0,0.04296753]
[1762696190456,0.1907421,102940.0,102930.0,0.04296753]
[1762696190952,0.5515421,102940.0,102930.0,0.04296753]
[1762696191847,0.5515421,102940.0,102930.0,0.00982753]
[1762696192049,0.1770459,102930.0,102920.0,0.43775151]
[1762696192249,0.07987,102930.0,102920.0,0.53547681]
[1762696192446,0.07987,102930.0,102920.0,0.63262549]
[1762696192947,0.07987,102930.0,102920.0,0.64249366]
[1762696195148,0.07987,102930.0,102920.0,0.61397697]
[1762696197756,0.07987,102930.0,102920.0,0.71116227]
[1762696197949,0.07987,102930.0,102920.0,0.61397697]
[1762696198552,0.07987,102930.0,102920.0,0.71116227]
[1762696199658,0.07987,102930.0,102920.0,0.61397697]
[1762696201060,0.07987,102930.0,102920.0,0.71116217]
[1762696201354,0.07987,102930.0,102920.0,0.64249356]
[1762696201955,0.07987,102930.0,102920.0,0.71116217]
[1762696202962,0.07987,102930.0,102920.0,0.61397697]
[1762696203154,0.07987,102930.0,102920.0,0.71116227]
[1762696203354,0.07987,102930.0,102920.0,0.61397697]
[1762696204055,0.07987,102930.0,102920.0,0.77537697]
[1762696204260,0.07987,102930.0,102920.0,0.61397697]
[1762696205462,0.0088857,102940.0,102930.0,0.0971758]
[1762696205651,0.08135,102950.0,102940.0,0.0971602]
[1762696205857,0.08135,102950.0,102940.0,0.54392594]
[1762696206054,0.01568779,102950.0,102940.0,0.57488386]
[1762696206257,0.06447779,102950.0,102940.0,0.57488386]
[1762696206457,0.06447779,102950.0,102940.0,0.67205026]
[1762696207159,0.0818,102960.0,102950.0,0.06183]
[1762696207354,0.37891,102970.0,102950.0,0.65777382]
[1762696207355,0.01811,102970.0,102950.0,0.65777382]
[1762696207562,0.08135,102970.0,102960.0,0.41384978]
[1762696207766,0.08135,102970.0,102960.0,0.05304978]
[1762696208067,0.08135,102970.0,102960.0,0.51098902]
[1762696208260,0.08135,102970.0,102960.0,0.51098574]
[1762696209062,0.08135,102970.0,102960.0,0.52821711]
[1762696209263,0.08135,102970.0,102960.0,0.45942924]
[1762696209967,0.08135,102970.0,102960.0,0.15113103]
[1762696211071,0.08135,102980.0,102960.0,0.52772711]
[1762696211269,0.08135,102980.0,102970.0,0.40940314]
[1762696211462,0.08135,102980.0,102970.0,0.41226504]
[1762696211965,0.1784786,102980.0,102970.0,0.05146504]
[1762696212157,0.5392786,102980.0,102970.0,0.05146504]
[1762696212362,0.08135,102970.0,102960.0,0.05357867]
[1762696212769,0.08135,102970.0,102960.0,0.52884986]
[1762696213163,0.08135,102970.0,102960.0,0.55620949]
[1762696213164,0.01811,102970.0,102960.0,0.55620949]
[1762696213364,0.01811,102970.0,102960.0,0.45906199]
[1762696213567,0.05067,102970.0,102960.0,0.55620949]
[1762696213762,0.08135,102970.0,102960.0,0.55520949]
[1762696213969,0.08135,102970.0,102960.0,0.55620949]
[1762696214569,0.08135,102970.0,102960.0,0.45906199]
[1762696214770,0.05067,102970.0,102960.0,0.55720949]
[1762696214973,0.01811,102970.0,102960.0,0.55720949]
[1762696215773,0.08135,102970.0,102960.0,0.46006199]
[1762696216278,0.08135,102970.0,102960.0,0.59095423]
[1762696217581,0.08135,102970.0,102960.0,1.23218173]
[1762696217774,0.08135,102970.0,102960.0,1.23118173]
[1762696218084,0.08135,102970.0,102960.0,1.23218173]
[1762696218279,0.08135,102970.0,102960.0,1.13503423]
[1762696218674,0.08135,102970.0,102960.0,0.59095423]
[1762696218978,0.08135,102970.0,102960.0,0.68810173]
[1762696219483,0.08135,102970.0,102960.0,0.68710173]
[1762696219781,0.08135,102970.0,102960.0,0.68610173]
[1762696219978,0.01811,102970.0,102960.0,0.70351561]
[1762696220278,0.05067,102990.0,102960.0,1.07604708]
[1762696220476,0.01811,102990.0,102980.0,0.4550572]
[1762696220672,0.05067,103000.0,102990.0,0.0942384]
[1762696220877,0.08135,103000.0,102990.0,0.41211887]
[1762696221073,0.08135,103000.0,102990.0,0.50922981]
[1762696224082,0.1784692,102990.0,102980.0,0.0514652]
[1762696224290,0.44215,102990.0,102980.0,0.00014633]
[1762696224679,0.5392692,102990.0,102980.0,0.00014633]
[1762696225977,0.44215,102990.0,102980.0,0.00014633]
[1762696226183,0.08135,102990.0,102980.0,0.45807493]
[1762696226482,0.0807,103000.0,102990.0,0.0971192]
[1762696226686,0.04726,103000.0,102990.0,0.0971192]
[1762696226887,0.04726,103000.0,102980.0,0.5093874]
[1762696227087,0.0807,103000.0,102990.0,0.09709209]
[1762696227290,0.0807,103000.0,102980.0,0.5093874]
[1762696227479,0.08306,102990.0,102980.0,0.4122652]
[1762696227679,0.01811,103000.0,102990.0,0.0971192]
[1762696227880,0.0807,103000.0,102980.0,0.60648861]
[1762696228077,0.0807,103000.0,102990.0,0.0971192]
[1762696228688,0.01811,103000.0,102990.0,0.4579192]
[1762696228891,0.04726,103000.0,102990.0,0.60633016]
[1762696229787,0.0807,103000.0,102990.0,0.50921096]
[1762696230584,0.0807,103000.0,102990.0,0.14841096]
[1762696230791,0.0807,103000.0,102990.0,0.50921096]
[1762696233292,0.0807,103000.0,102990.0,0.60633016]
[1762696233594,0.0807,103000.0,102990.0,0.50921096]
[1762696233888,0.0807,103000.0,102990.0,0.60633016]
[1762696234294,0.0807,103000.0,102990.0,0.50921096]
[1762696234993,0.0807,103000.0,102990.0,0.14841096]
[1762696235189,0.04726,103000.0,102990.0,0.29788576]
[1762696235385,0.01811,103000.0,102990.0,0.60736689]
[1762696235580,0.01811,103000.0,102990.0,0.55501129]
[1762696235986,0.04726,103000.0,102990.0,0.55501129]
[1762696236386,0.0807,103010.0,102990.0,0.55501129]
[1762696236992,0.02047,103000.0,102990.0,0.55501129]
[1762696237194,0.04962,103000.0,102990.0,0.55501129]
[1762696237390,0.04962,103000.0,102990.0,0.62343688]
[1762696237584,0.02047,103000.0,102990.0,0.55501129]
[1762696237788,0.08306,103000.0,102990.0,0.62343688]
[1762696238194,0.08306,103000.0,102990.0,0.52631768]
[1762696238491,0.08306,103000.0,102990.0,0.09709209]
[1762696238689,0.44386,103000.0,102990.0,0.09709209]
[1762696240692,0.44386,103000.0,102990.0,0.19421129]
[1762696242198,0.08306,103000.0,102990.0,0.19421129]
[1762696242396,0.04962,103000.0,102990.0,0.19421129]
[1762696242602,0.08306,103000.0,102990.0,0.19421129]
[1762696242989,0.4415,103010.0,103000.0,0.0971098]
[1762696243195,0.0807,103010.0,102990.0,1.05135454]
[1762696243496,0.08306,103000.0,102990.0,0.95426245]
[1762696243703,0.08306,103000.0,102990.0,1.05135454]
[1762696244003,0.08306,103000.0,102990.0,0.95424164]
[1762696244199,0.07306,103000.0,102990.0,1.05136064]
[1762696244594,0.01047,103000.0,102990.0,1.05136064]
[1762696245606,0.03962,103000.0,102990.0,1.05136064]
[1762696245797,0.07306,103000.0,102990.0,1.05136064]
[1762696246504,0.07306,103000.0,102990.0,0.95424164]
[1762696246698,0.07306,103000.0,102990.0,1.05136064]
[1762696247096,0.07306,103000.0,102990.0,0.95424164]
[1762696247299,0.07306,103000.0,102990.0,1.05136064]
[1762696249300,0.08354,103010.0,103000.0,0.0971096]
[1762696249599,0.08354,103010.0,103000.0,0.16553519]
[1762696250007,0.08354,103010.0,103000.0,0.26261785]
[1762696253103,0.08354,103010.0,103000.0,0.19419226]
[1762696253507,0.08354,103010.0,103000.0,0.17389809]
[1762696254202,0.08354,103010.0,103000.0,0.27100769]
[1762696254602,0.44434,103010.0,103000.0,0.27100769]
[1762696254903,0.08354,103010.0,103000.0,0.17389809]
[1762696255096,0.05106,103010.0,103000.0,0.32344705]